Cogmind - Beta 17.1 @@@ ROGUE MODE // 2026.09.01 @ 22:49:45 Player: LandRaider Result: Destroyed by VN-UQ7(R) with Subdweller Laser Performance ------------- Evolutions (0) 0 Regions Visited (1) 200 Robots Destroyed (17) 85 Value Destroyed (334) 334 Prototype IDs (2) 40 Alien Tech Used (0) 0 Bonus (0) 0 TOTAL SCORE: 659 Bonus ------- None Cogmind --------- Core Integrity 0/250 Matter 270/300 Energy 60/250 System Corruption 0% Temperature Hot (276) Movement Walking (120) Location -10/Materials Parts ------- > --- POWER (1) -------- Ion Engine > --- PROPULSION (2) --- Aluminum Leg Aluminum Leg > --- UTILITY (2) ------ Medium Storage Unit > --- WEAPON (2) ------- (None) > --- INVENTORY (10) --- Light Treads Large Matter Pod (150) Sensor Array Peak State ------------ > --- POWER ------------ Light Nuclear Core > --- PROPULSION ------- Aluminum Leg Aluminum Leg > --- UTILITY ---------- Heat Sink Medium Storage Unit > --- WEAPON ----------- EM Pulse Gun Medium Laser > --- INVENTORY -------- Ion Engine Light Treads Aluminum Leg Aluminum Leg Large Matter Pod Sensor Array [Rating: 9] Favorites ----------- Power Light Ion Engine Engine Light Ion Engine Power Core Light Nuclear Core Propulsion Light Treads Treads Light Treads Leg Aluminum Leg Utility Seismic Detector Device Seismic Detector Storage Medium Storage Unit Weapon Medium Laser Energy Gun Medium Laser Special Weapon Welding Torch Build | -11 -10 ------- Run | Yrd Mat Slots Evolved . | . . Power . | . . Propulsion . | . . Utility . | . . Weapon . | . . Parts Attached 18 | 7 11 Power 3 | 1 2 Engine 2 | 1 1 Core 1 | . 1 Reactor . | . . Propulsion 6 | 2 4 Treads 2 | 2 . Leg 4 | . 4 Wheel . | . . Hover . | . . Flight . | . . Utility 4 | 2 2 Device 2 | 1 1 Storage 2 | 1 1 Processor . | . . Hackware . | . . Protection . | . . Artifact . | . . Weapon 5 | 2 3 Energy Gun 4 | 2 2 Energy Cannon . | . . Ballistic Gun . | . . Ballistic Cannon . | . . Launcher . | . . Special Weapon 1 | . 1 Impact Weapon . | . . Slashing Weapon . | . . Piercing Weapon . | . . Special Melee Weapon . | . . Unidentified Prototypes . | . . Parts Lost 10 | . 10 Power 2 | . 2 Propulsion 2 | . 2 Utility 2 | . 2 Weapon 4 | . 4 Highest Loss Streak 7 | . 7 To Critical Strikes . | . . Average Backups 6 | 3 7 Power . | . 1 Propulsion 2 | 1 2 Utility 2 | . 2 Weapon . | . . Tool/Special . | . . Unused Backups 3 | . 3 Power . | . . Propulsion 1 | . 1 Utility 2 | . 2 Weapon . | . . Tool/Special . | . . Average Slot Usage (%) 96 | . 96 Engine 10 | . 10 Core 2 | . 2 Treads 21 | . 21 Leg 6 | . 6 Device 12 | . 12 Storage 14 | . 14 Energy Gun 26 | . 26 Peak Build Rating 9 | 7 9 Average Rating 7 | 5 7 On Entrance 3 | . 7 Avg Prop Armor Cover (%) . | . . Naked Turns . | . . Heaviest Build 20 | 12 20 Greatest Support 40 | 40 40 Greatest Overweight (x) 2 | 2 1 Average Overweight (x) . | . . Largest Inventory Capacity 10 | 8 10 Average Capacity 9 | 7 9 Most Carried 8 | 4 8 Average Carried 6 | 3 7 Final Capacity 10 | 8 10 Final Carried 4 | 4 3 Class Distribution -------------------- 82% | Mutant 17% | Scavenger-Mutant Dominant Class ---------------- Mutant | -10/Materials Resources | -11 -10 ----------- Run | Yrd Mat Matter Collected 500 | 270 230 Remotely . | . . Salvage Created 635 | 159 476 Parts 28 | 3 25 Haulers Intercepted 1 | . 1 Recyclers Shooed 1 | . 1 Parts Field Recycled . | . . Retrieved Matter . | . . Parts Self-Destructed . | . . Prevented . | . . Parts Restored . | . . Kills | -11 -10 ------- Run | Yrd Mat Combat Hostiles Destroyed 9 | . 9 Guns 7 | . 7 Classes Destroyed 8 | 3 5 Worker 3 | 2 1 Tunneler 1 | 1 . Hauler 1 | . 1 Recycler 1 | 1 . Operator 1 | . 1 Watcher 1 | . 1 Swarmer 2 | . 2 Grunt 7 | . 7 Best Kill Streak 4 | 2 4 Combat Bots Only 4 | . 4 Max Kills in Single Turn 1 | 1 1 Gunslinging . | . . Exploded . | . . Melee . | . . Uniques/NPCs Destroyed . | . . Combat | -11 -10 -------- Run | Yrd Mat Hostile Shots Fired 93 | . 93 Missed 21 | . 21 Hits 72 | . 72 Projectile 72 | . 72 Critical Strikes 1 | . 1 Damage Taken 1104 | . 1104 Core 255 | . 255 Absorbed by Shields . | . . Core Remaining (%) 100 | 100 . Volleys Fired 79 | 14 65 Largest 2 | 2 2 Hottest 90 | 90 90 Shots Fired 133 | 27 106 Gun 130 | 27 103 Cannon . | . . Launcher . | . . Special 3 | . 3 Kinetic . | . . Thermal 127 | 27 100 Explosive . | . . Electromagnetic 6 | . 6 Robot Hit Streak 17 | 5 17 Robot Miss Streak 7 | 3 7 Penetration Max . | . . Secondary Targets 2 | . 2 Max Gunslinging Chain 1 | . 1 Shots Hit Robots 87 | 15 72 Core Hits 30 | 5 25 Critical Kills . | . . Critical Parts Destroyed . | . . Critical Strikes 4 | 1 3 Burn 4 | 1 3 Melee Attacks . | . . Impact . | . . Slashing . | . . Piercing . | . . Sneak Attacks . | . . Combat Hostiles . | . . Follow-up Attacks . | . . Damage Inflicted 1046 | 189 857 Guns 1046 | 189 857 Cannons . | . . Explosions . | . . Melee . | . . Ramming . | . . Kinetic . | . . Thermal 970 | 189 781 Explosive . | . . Electromagnetic 76 | . 76 Impact . | . . Slashing . | . . Piercing . | . . Highest Corruption . | . . Average Corruption . | . . Corruption Purged . | . . Corruption Blocked . | . . Overload Shots . | . . Overflow Damage . | . . Projectiles . | . . Explosions . | . . Melee . | . . Knockbacks . | . . Impact . | . . Kinetic . | . . Secondary . | . . Self-Inflicted Damage . | . . Shots . | . . Rammed . | . . Targets Rammed . | . . Kicked . | . . Crushed . | . . Highest Temperature 342 | 164 342 Average Temperature 98 | 76 103 Received Heat Transfer 674 | . 674 Effects 1 | . 1 Energy Bleed 1 | . 1 Siege Activations . | . . Martial Activations . | . . Shielding Activations . | . . Robots Disrupted . | . . Combat Hostiles . | . . Robots Corrupted . | . . Combat Hostiles . | . . Parts Fried . | . . Impact Corruptions . | . . Robots Melted 2 | . 2 Combat Hostiles 2 | . 2 Parts Melted 3 | . 3 Heat Transferred 2886 | 546 2340 Parts Sabotaged . | . . Parts Stolen . | . . Parts Stripped . | . . Power Chain Reactions . | . . Alert | -11 -10 ------- Run | Yrd Mat Maximum Alert Level . | . . Low Security (%) 100 | 100 100 Level 1 . | . . Level 2 . | . . Level 3 . | . . Level 4 . | . . Level 5 . | . . High Security . | . . Max Security . | . . Peak Influence 90 | 10 90 Initial . | . . Average 21 | 2 24 Influence Increases 307 | 20 287 Destroy 0b10 Robot/C 180 | . 180 Destroy 0b10 Robot/NC 40 | 20 20 Destroy Leader 54 | . 54 Successful Hack 33 | . 33 Influence Decreases 307 | 20 287 Time Decay 256 | 20 236 Lost Part 51 | . 51 Squads Dispatched 4 | . 4 Investigation 2 | . 2 Extermination . | . . Reinforcement 2 | . 2 Assault . | . . Garrison . | . . Intercept . | . . Searches Triggered . | . . Construction Impeded . | . . Haulers Reinforced . | . . Active Scanning Responses . | . . Cargo Convoy Interrupts . | . . Stealth | -11 -10 --------- Run | Yrd Mat Distress Signals 2 | . 2 Communications Jammed . | . . Distress Signals . | . . Times Spotted 17 | . 17 Peak Tracking Total 5 | . 5 Tactical Retreats . | . . Traps | -11 -10 ------- Run | Yrd Mat Traps Triggered 1 | . 1 Indirectly . | . . Trap Hack Attempts . | . . Triggered . | . . Disarmed . | . . Reprogrammed . | . . Reused . | . . Traps Extracted . | . . Installed . | . . Triggered . | . . Machines | -11 -10 ---------- Run | Yrd Mat Machines Disabled . | . . Max in Single Turn . | . . Machines Repaired . | . . Machines Dismantled . | . . Machines Sabotaged . | . . Overloaded Fab Kills . | . . Hacking | -11 -10 --------- Run | Yrd Mat Machines Accessed 4 | . 4 Terminals 4 | . 4 Fabricators . | . . Repair Stations . | . . Recycling Units . | . . Scanalyzers . | . . Garrison Access . | . . Total Hacks 11 | . 11 Successful 8 | . 8 Failed 3 | . 3 Catastrophic 1 | . 1 Database Lockouts . | . . Manual 5 | . 5 Terminals 11 | . 11 Fabricators . | . . Repair Stations . | . . Recycling Units . | . . Scanalyzers . | . . Garrison Access . | . . Terminal Hacks 5 | . 5 Robot Analysis 1 | . 1 Prototype ID Bank 1 | . 1 Terminal Index 1 | . 1 Dispatch Records 1 | . 1 Hauler Manifests 1 | . 1 Fabricator Hacks . | . . Repair Station Hacks . | . . Recycling Unit Hacks . | . . Scanalyzer . | . . Garrison Access Hacks . | . . Unauthorized Hacks 3 | . 3 Terminals 3 | . 3 Botnet 3 | . 3 Fabricators . | . . Repair Stations . | . . Recycling Units . | . . Scanalyzers . | . . Garrison Access . | . . Data Cores Recovered . | . . Used . | . . Hacking Detections 3 | . 3 Full Trace Events 1 | . 1 Feedback Events . | . . Feedback Blocked . | . . Robot Schematics Acquired . | . . Robots Built . | . . Authchips . | . . Time . | . . Total Robot Build Rating . | . . Part Schematics Acquired . | . . Parts Built . | . . Authchips . | . . Time . | . . Total Part Build Rating . | . . Part Studies Acquired . | . . Parts Repaired . | . . Time . | . . Parts Recycled . | . . Recycled Matter . | . . Retrieved Matter . | . . Retrieved Components . | . . Parts Scanalyzed . | . . Part Schematics Acquired . | . . Parts Damaged . | . . Bothacking | -11 -10 ------------ Run | Yrd Mat Used RIF Installer . | . . Robots Hacked . | . . Non-combat . | . . Combat . | . . Robot Hacks Applied . | . . Relay Couplers Released . | . . Fabnet Peak Effective % . | . . Robots Rewired . | . . Allies Hacked . | . . Hacks Repelled . | . . Allies | -11 -10 -------- Run | Yrd Mat Total Allies . | . . Largest Group . | . . Highest-Rated Group . | . . Highest-Rated Ally . | . . Total Orders . | . . Ally Attacks . | . . Total Damage . | . . Kills . | . . Allies Corrupted . | . . Allies Melted . | . . Intel | -11 -10 ------- Run | Yrd Mat Active Infowar (turns) 715 | 68 647 Seismic 715 | 68 647 Robot Analysis Total 1 | . 1 Derelict Logs Recovered . | . . Drone Launches . | . . Drone Recoveries . | . . Exploration | -11 -10 ------------- Run | Yrd Mat Turns Passed 1021 | 135 886 Spaces Moved 477 | 54 423 Core 9 | 9 . Treads 369 | 45 324 Legs 99 | . 99 Wheels . | . . Hover . | . . Flight . | . . Fastest Speed 50 | 50 120 Average Speed 150 | 149 150 Slowest Speed 190 | 160 190 Overloaded Moves . | . . Propulsion Burnouts . | . . Robots Hopped . | . . Potential Cave-ins . | . . Cave-ins Triggered . | . . Exploration Rate (%) 40 | 4 76 Regions Visited 1 Branch Regions . Pre-discovered Areas . | . . Known Exits Taken . | . . Unknown Exits Taken 1 | 1 . Scrap Searched . | . . Spaces Dug . | . . Terrain Destroyed . | . . Melee . | . . Projectile . | . . AOE . | . . Terrain Rammed . | . . Walls Destroyed . | . . Machines Disabled . | . . Actions | -11 -10 --------- Run | Yrd Mat Total 642 | 78 564 Wait 54 | . 54 Move 476 | 53 423 Hop . | . . Pick Up 10 | 4 6 Fast Attach 10 | 7 3 Attach 7 | . 7 Detach . | . . Swap 2 | . 2 Drop 4 | . 4 Fire 79 | 14 65 Melee . | . . Ram . | . . Kick . | . . Crush . | . . Escape Stasis . | . . Rewire . | . . Trap . | . . Miscellaneous . | . . Route ------- -11/Scrapyard -10/Materials (discovered 5 exits: [*Mat x2] / [*Min x2] / [*Sub]) History --------- Turn | Location | Event 7 | -11/Scrapyard | Discovered new exit (range 16) 136 | -11/Scrapyard | Entered Materials 308 | -10/Materials | Build established: Mutant 316 | -10/Materials | Discovered new exit (range 9) 431 | -10/Materials | Discovered new exit (range 14) 550 | -10/Materials | Discovered new exit (range 8) 787 | -10/Materials | Discovered new exit (range 7) 830 | -10/Materials | Lost 3 parts (1p1u1w) 930 | -10/Materials | Discovered new exit (range 16) 936 | -10/Materials | Derelicts attacked the area 1002 | -10/Materials | Core integrity fell below 50% 1020 | -10/Materials | Core integrity fell below 20% 1022 | -10/Materials | Destroyed by VN-UQ7(R) with Subdweller Laser Last Messages --------------- stationed in areas that themselves hold little importance, but are connected to other more vital zones. There they scan for potential threats and relay information to distant garrisons to enable advance preparations. Like the watcher series they are extremely susceptible to electromagnetic attacks, while their tiny size also leaves them prone to being disabled by concussive blasts. 00955_ K-01 Serf collects debris. 00971_ TF Node disabled. 00971_ Sensor Array tumbles out of TF Node. 00971_ Signal Interpreter tumbles out of TF Node. 00973_ K-01 Serf collects debris. 00990_ EM Pulse Gun destroyed. 00999_ Heat Sink destroyed. 01005_ Med. Laser destroyed. 01009_ Lgt. Nuclear Core destroyed. 01011_ Recycling Unit disabled. 01011_ Welding Torch tumbles out of recycling unit. 01012_ Critical hit (Meltdown: +290). 01017_ Sml. Laser destroyed. 01018_ Aluminum Leg destroyed. Map ----- +----------------------------------------------------+ | =#??# %%! #?????????????????????????? | | #??# % #?????????????????????????? | | #??# ! % #?????????????????????????? | | #??############### #?????????????????????????? | | #????????????????# #?????????????????????????? | | #????????????????# #?????????????????????????? | | #????????????????# #?????????????????????????? | | #????????????????# ############??????????????? | | #????????????????# ?????????????? | | #????????????????# ?????????????? | | #???????????###??# % ?????????????? | | #?????????### ?# ###############???????????? | | #?????????#< # = #??????# #???????????? | | #?????????## #% =#??????#""" | #???????????? | | #?????????#X + #??????#""" #???????????? | | ############## #% #??????#""" #???????????? | | # #???# ## #??????# #?####??????? | | #" """ #???##### ##??????? ??#T"#??????? | | #" """ ######## ##########+##### "####???? | | ###" """ # ! !!=% #???? | | ??#T + | *=%* < #???? | | ??#" """ # ! ! %!% #???? | | ??#" """ ####+### ###+###|##############???? | | ??#" """ ## ####### #??????????????? | | ??# ## #?????#R"Y" #??????????????? | | ??########### #?????#@ "" #??????????????? | | ????????????# #?????# R R #??????????????? | | ????????????#######?????##;########??????????????? | | | | | | | | | | | | | | | | | | | | | | | | | | | | | | | | | | | | | | | | | | | | | +----------------------------------------------------+ Best States ------------- Heat Dissipation 35 Energy Generation 14 Energy Capacity 160 Matter Stores 300 Matter Capacity 300 Sight Range 16 Terrain Scan Density 10 Evasion (%) 55 Recoil Reduction 2 Item Schematics ----------------- None Robot Schematics ------------------ None Fabricated ------------ Nothing Repaired ---------- Nothing Studied --------- None Alien Tech Used ----------------- None Achievements -------------- None Challenges ------------ None Game ------ Seed FactoryWarpInjector Manual? 0 Play Time 00:12:22 Cumulative 133.4 hours Start 2026.09.01 @ 22:42:57 End 2026.09.01 @ 22:49:45 Sessions 1 Manual Loads 0 Difficulty Rogue Special Mode None Game No. 114 Rogue 112 Adventurer 2 Explorer 0 Win Type - Total 0 Types 0/0/0/0/0/0/0/0/0/0 Lore% 59 Gallery% 50 Achievement% 41 Wizard Run 0 Options --------- Layout 0 ASCII 0 Keyboard 0 Movement Mouse Keybinds 0 Fullscreen 2 Font 24/Smallcaps Map View 76x50 Zoom Use 0% Tactical HUD 1 Map Filters NONE Filters NONE Steam 1 RUN: c72787c8-875d-4827-8979-78c754892a23